fUSD/lending_fUSD_20250123
["ID","MTS","AMOUNT","RATE_DAILY","PERIOD"]
[350079749,1737601856245,-500.0,0.00020273,2]
[350079750,1737601856254,-500.0,0.00020273,2]
[350079751,1737601856262,-500.0,0.00020273,2]
[350079752,1737601856272,-500.0,0.00020273,2]
[350079753,1737601856281,-592.62,0.00020273,2]
[350079754,1737601856290,-558.15,0.00020273,2]
[350079755,1737601856299,-500.0,0.00020273,2]
[350079756,1737601856307,-500.0,0.00020273,2]
[350079757,1737601856316,-573.29,0.00020273,2]
[350079758,1737601856329,-947.84,0.00020273,2]
[350079759,1737601856338,-589.76,0.00020273,2]
[350079760,1737601856347,-884.42,0.00020273,2]
[350079761,1737601856356,-500.4,0.00020273,2]
[350079762,1737601856365,-616.97,0.00020273,2]
[350079763,1737601856374,-2065.13,0.00020273,2]
[350079764,1737601856384,-500.0,0.00020273,2]
[350079765,1737601856393,-3491.32,0.00020273,2]
[350079766,1737601856403,-534.62,0.00020273,2]
[350079767,1737601856413,-511.8746709,0.00020273,2]
[350079768,1737601856423,-500.0,0.00020273,2]
[350079769,1737601856433,-500.0,0.00020273,2]
[350079770,1737601856442,-500.0,0.00020273,2]
[350079771,1737601856451,-500.0,0.00020273,2]
[350079772,1737601856463,-1708.36,0.00020273,2]
[350079773,1737601856472,-690.87,0.00020273,2]
[350079774,1737601856482,-500.0,0.00020273,2]
[350079775,1737601856491,-770.62,0.00020273,2]
[350079776,1737601856501,-500.0,0.00020273,2]
[350079777,1737601856510,-806.46,0.00020273,2]
[350079778,1737601856519,-500.0,0.00020273,2]
[350079779,1737601856529,-500.0,0.00020273,2]
[350079780,1737601856538,-500.47,0.00020273,2]
[350079781,1737601856547,-1051.56,0.00020273,2]
[350079782,1737601856555,-500.0,0.00020273,2]
[350079783,1737601856565,-500.0,0.00020273,2]
[350079784,1737601856576,-1435.24,0.00020273,2]
[350079785,1737601856586,-538.48,0.00020273,2]
[350079786,1737601856595,-500.0,0.00020273,2]
[350079787,1737601856604,-729.76,0.00020273,2]
[350079788,1737601856613,-629.29,0.00020273,2]
[350079789,1737601856624,-500.0,0.00020273,2]
[350079790,1737601856633,-500.0,0.00020273,2]
[350079791,1737601856642,-636.93,0.00020273,2]
[350079792,1737601856654,-500.0,0.00020273,2]
[350079793,1737601856663,-1076.24,0.00020273,2]
[350079794,1737601856672,-836.11,0.00020273,2]
[350079795,1737601856681,-1478.72,0.00020273,2]
[350079796,1737601856690,-500.0,0.00020273,2]
[350079797,1737601856699,-500.0,0.00020273,2]
[350079798,1737601856708,-888.27,0.00020273,2]
[350079799,1737601856718,-500.0,0.00020273,2]
[350079800,1737601856728,-590.35,0.00020273,2]
[350079801,1737601856737,-1223.08,0.00020273,2]
[350079802,1737601856746,-500.0,0.00020273,2]
[350079803,1737601856755,-2287.67,0.00020273,2]
[350079804,1737601856764,-500.0,0.00020273,2]
[350079805,1737601856774,-982.27,0.00020273,2]
[350079806,1737601856783,-968.27,0.00020273,2]
[350079807,1737601856792,-500.0,0.00020273,2]
[350079808,1737601856801,-500.0,0.00020273,2]
[350079809,1737601856810,-500.0,0.00020273,2]
[350079810,1737601856819,-1330.84,0.00020273,2]
[350079811,1737601856829,-500.0,0.00020273,2]
[350079812,1737601856838,-1440.82,0.00020273,2]
[350079813,1737601856846,-500.0,0.00020273,2]
[350079814,1737601856856,-1365.42,0.00020273,2]
[350079815,1737601856865,-2497.89,0.00020273,2]
[350079816,1737601856874,-881.86,0.00020273,2]
[350079817,1737601856884,-500.0,0.00020273,2]
[350079818,1737601856893,-1000.0,0.00020273,2]
[350079819,1737601856903,-857.72,0.00020273,2]
[350079820,1737601856916,-1452.48,0.00020273,2]
[350079821,1737601856929,-500.0,0.00020273,2]
[350079822,1737601856939,-1659.58,0.00020273,2]
[350079823,1737601856948,-901.96,0.00020273,2]
[350079824,1737601856957,-500.0,0.00020273,2]
[350079825,1737601856968,-500.0,0.00020273,2]
[350079826,1737601856977,-774.03,0.00020273,2]
[350079827,1737601856987,-620.7,0.00020273,2]
[350079828,1737601856995,-1136.0,0.00020273,2]
[350079829,1737601857005,-1336.5,0.00020273,2]
[350079830,1737601857014,-800.69,0.00020273,2]
[350079831,1737601857023,-762.67,0.00020273,2]
[350079832,1737601857033,-2708.15,0.00020273,2]
[350079833,1737601857042,-1482.92,0.00020273,2]
[350079834,1737601857051,-600.78,0.00020273,2]
[350079835,1737601857060,-500.0,0.00020273,2]
[350079836,1737601857069,-500.0,0.00020273,2]
[350079837,1737601857079,-500.0,0.00020273,2]
[350079838,1737601857088,-500.0,0.00020273,2]
[350079839,1737601857098,-500.0,0.00020273,2]
[350079840,1737601857107,-500.0,0.00020273,2]
[350079841,1737601857116,-645.45,0.00020273,2]
[350079842,1737601857125,-1422.27,0.00020273,2]
[350079843,1737601857135,-500.0,0.00020273,2]
[350079844,1737601857144,-500.0,0.00020273,2]
[350079845,1737601857154,-500.0,0.00020273,2]
[350079846,1737601857164,-975.87,0.00020273,2]
[350079847,1737601857184,-500.0,0.00020273,2]
[350079848,1737601857195,-500.0,0.00020273,2]
[350079849,1737601857204,-1785.01,0.00020273,2]
[350079850,1737601857215,-500.0,0.00020273,2]
[350079851,1737601857224,-500.0,0.00020273,2]
[350079852,1737601857233,-500.0,0.00020273,2]
[350079853,1737601857242,-2094.7,0.00020273,2]
[350079854,1737601857251,-973.45,0.00020273,2]
[350079855,1737601857260,-500.0,0.00020273,2]
[350079856,1737601857269,-1583.2,0.00020273,2]
[350079857,1737601857278,-571.98846702,0.00020273,2]
[350079858,1737601857289,-1014.5,0.00020273,2]
[350079859,1737601857298,-500.0,0.00020273,2]
[350079860,1737601857307,-740.05,0.00020273,2]
[350079861,1737601857316,-500.0,0.00020273,2]
[350079862,1737601857325,-500.0,0.00020273,2]
[350079863,1737601857335,-500.0,0.00020273,2]
[350079864,1737601857344,-1008.54,0.00020273,2]
[350079865,1737601857353,-169.12673284,0.00020273,2]
[350079866,1737601857363,-500.0,0.00020273,2]
[350079867,1737601857372,-500.0,0.00020273,2]
[350079868,1737601857381,-500.0,0.00020273,2]
[350079869,1737601857391,-683.54,0.00020273,2]
[350079870,1737601857401,-1456.71,0.00020273,2]
[350079871,1737601857410,-500.0,0.00020273,2]
[350079872,1737601857419,-500.0,0.00020273,2]
[350079873,1737601857428,-1653.44,0.00020273,2]
[350079874,1737601857438,-947.44,0.00020273,2]
[350079875,1737601857447,-659.61,0.00020273,2]
[350079876,1737601857456,-500.0,0.00020273,2]
[350079877,1737601857467,-500.0,0.00020273,2]
[350079878,1737601857476,-859.87,0.00020273,2]
[350079879,1737601857485,-500.0,0.00020273,2]
[350079880,1737601857495,-500.0,0.00020273,2]
[350079881,1737601857504,-500.0,0.00020273,2]
[350079882,1737601857514,-713.74,0.00020273,2]
[350079883,1737601857523,-500.0,0.00020273,2]
[350079884,1737601857533,-880.08,0.00020273,2]
[350079885,1737601857542,-500.0,0.00020273,2]
[350079886,1737601857551,-865.21,0.00020273,2]
[350079887,1737601857561,-500.0,0.00020273,2]
[350079888,1737601857570,-500.0,0.00020273,2]
[350079889,1737601857582,-2205.73,0.00020273,2]
[350079890,1737601857591,-525.51,0.00020273,2]
[350079891,1737601857601,-500.0,0.00020273,2]
[350079892,1737601857610,-317.8104886,0.00020273,2]
[350079893,1737601857622,-500.0,0.00020273,2]
[350079894,1737601857631,-500.0,0.00020273,2]
[350079895,1737601857641,-500.0,0.00020273,2]
[350079896,1737601857652,-520.85,0.00020273,2]
[350079897,1737601857661,-500.0,0.00020273,2]
[350079898,1737601857671,-500.0,0.00020273,2]
[350079899,1737601857680,-500.0,0.00020273,2]
[350079900,1737601857690,-1015.49,0.00020273,2]
[350079901,1737601857699,-1435.42,0.00020273,2]
[350079902,1737601857708,-500.0,0.00020273,2]
[350079903,1737601857718,-500.0,0.00020273,2]
[350079904,1737601857727,-500.0,0.00020273,2]
[350079905,1737601857737,-608.35894277,0.00020273,2]
[350079906,1737601857746,-500.0,0.00020273,2]
[350079907,1737601857756,-500.0,0.00020273,2]
[350079908,1737601857765,-599.42,0.00020273,2]
[350079909,1737601857774,-671.32,0.00020273,2]
[350079910,1737601857783,-843.22,0.00020273,2]
[350079911,1737601857793,-212.10476439,0.00020273,2]
[350079912,1737601857802,-2063.25,0.00020273,2]
[350079913,1737601857811,-295.36994334,0.00020281,4]
[350079914,1737601857821,-151.67191347,0.00020281,4]
[350079915,1737601857830,-295.36994334,0.00020304,4]
[350079916,1737601857839,-151.67191347,0.00020304,4]
[350079917,1737601857848,-150.0,0.00020311,4]
[350079918,1737601857857,-295.36994334,0.00020326,4]
[350079919,1737601857867,-151.67191347,0.00020326,4]
[350079920,1737601857876,-358.61744785,0.00020348,2]
[350079921,1737601857885,-295.36994334,0.00020349,4]
[350079922,1737601857895,-151.67191347,0.00020349,4]
[350079923,1737601857904,-1488.93,0.00020352,2]
[350079924,1737601857913,-150.0,0.00020353,4]
[350079925,1737601857922,-500.0,0.00020356,2]
[350079926,1737601857931,-854.17,0.00020369,2]
[350079927,1737601857940,-295.36994334,0.00020372,4]
[350079928,1737601857949,-151.67191347,0.00020372,4]
[350079929,1737601857958,-295.36994334,0.00020394,4]
[350079930,1737601857968,-150.0,0.00020394,4]
[350079931,1737601857977,-151.67191347,0.00020394,4]
[350079932,1737601857987,-150.0,0.00020394,4]
[350079933,1737601857997,-172.98603502,0.000204,2]
[350079934,1737601858006,-295.36994334,0.00020417,4]
[350079935,1737601858015,-151.67191347,0.00020417,4]
[350079936,1737601858024,-177.43,0.00020429,2]
[350079937,1737601858034,-152.0,0.00020432,3]
[350079938,1737601858043,-150.0,0.00020436,4]
[350079939,1737601858053,-295.36994334,0.0002044,4]
[350079940,1737601858062,-151.67191347,0.0002044,4]
[350079941,1737601858071,-358.61744785,0.00020452,2]
[350079942,1737601858081,-295.36994334,0.00020462,4]
[350079943,1737601858091,-151.67191347,0.00020462,4]
[350079944,1737601858100,-150.0,0.00020477,4]
[350079945,1737601858109,-295.36994334,0.00020485,4]
[350079946,1737601858119,-151.67191347,0.00020485,4]
[350079947,1737601858128,-854.17,0.00020506,2]
[350079948,1737601858138,-295.36994334,0.00020507,4]
[350079949,1737601858148,-151.67191347,0.00020507,4]
[350079950,1737601858157,-150.0,0.00020519,4]
[350079951,1737601858167,-150.0,0.00020519,4]
[350079952,1737601858176,-295.36994334,0.0002053,4]
[350079953,1737601858185,-151.67191347,0.0002053,4]
[350079954,1737601858195,-500.0,0.00020547,2]
[350079955,1737601858204,-500.0,0.00020547,2]
[350079956,1737601858214,-500.0,0.00020547,2]
[350079957,1737601858224,-500.0,0.00020547,2]
[350079958,1737601858234,-500.0,0.00020547,2]
[350079959,1737601858244,-500.0,0.00020547,2]
[350079960,1737601858253,-570.23,0.00020547,2]
[350079961,1737601858263,-500.0,0.00020547,2]
[350079962,1737601858274,-500.0,0.00020547,2]
[350079963,1737601858283,-500.0,0.00020547,2]
[350079964,1737601858293,-500.0,0.00020547,2]
[350079965,1737601858303,-500.0,0.00020547,2]
[350079966,1737601858313,-639.95983627,0.00020547,2]
[350079967,1737601858323,-500.0,0.00020547,2]
[350079968,1737601858450,-568.18,0.00020547,2]
[350079969,1737601858480,-500.0,0.00020547,2]
[350079970,1737601858490,-780.76,0.00020547,2]
[350079971,1737601858499,-500.0,0.00020547,2]
[350079972,1737601858508,-500.0,0.00020547,2]
[350079973,1737601858517,-500.0,0.00020547,2]
[350079974,1737601858527,-500.0,0.00020547,2]
[350079975,1737601858537,-536.36,0.00020547,2]
[350079976,1737601858546,-500.0,0.00020547,2]
[350079977,1737601858555,-500.0,0.00020547,2]
[350079978,1737601858564,-500.0,0.00020547,2]
[350079979,1737601858573,-500.0,0.00020547,2]
[350079980,1737601858584,-500.0,0.00020547,2]
[350079981,1737601858593,-519.52659,0.00020547,2]
[350079982,1737601858603,-500.0,0.00020547,2]
[350079983,1737601858612,-520.63,0.00020547,2]
[350079984,1737601858622,-500.0,0.00020547,2]
[350079985,1737601858632,-467.734024,0.00020547,2]
[350079986,1737601858640,-633.07,0.00020547,2]
[350079987,1737601858650,-548.18,0.00020547,2]
[350079988,1737601858659,-534.32,0.00020547,2]
[350079989,1737601858668,-502.31,0.00020547,2]
[350079990,1737601858678,-500.0,0.00020547,2]
[350079991,1737601858687,-519.59,0.00020547,2]
[350079992,1737601858696,-500.0,0.00020547,2]
[350079993,1737601858705,-500.0,0.00020547,2]
[350079994,1737601858714,-500.0,0.00020547,2]
[350079995,1737601858723,-500.0,0.00020547,2]
[350079996,1737601858732,-500.0,0.00020547,2]
[350079997,1737601858742,-500.0,0.00020547,2]
[350079998,1737601858752,-500.0,0.00020547,2]
[350079999,1737601858762,-422.55447937,0.00020547,2]
[350080000,1737601858771,-500.0,0.00020547,2]
[350080001,1737601858780,-500.0,0.00020547,2]
[350080002,1737601858789,-500.0,0.00020547,2]
[350080003,1737601858798,-592.62,0.00020547,2]
[350080004,1737601858807,-558.15,0.00020547,2]
[350080005,1737601858817,-500.0,0.00020547,2]
[350080006,1737601858826,-500.0,0.00020547,2]
[350080007,1737601858835,-573.29,0.00020547,2]
[350080008,1737601858844,-947.84,0.00020547,2]
[350080009,1737601858853,-589.76,0.00020547,2]
[350080010,1737601858862,-884.42,0.00020547,2]
[350080011,1737601858871,-500.4,0.00020547,2]
[350080012,1737601858881,-616.97,0.00020547,2]
[350080013,1737601858890,-2065.13,0.00020547,2]
[350080014,1737601858900,-3491.32,0.00020547,2]
[350080015,1737601858909,-534.62,0.00020547,2]
[350080016,1737601858919,-500.0,0.00020547,2]
[350080017,1737601858928,-500.0,0.00020547,2]
[350080018,1737601858938,-500.0,0.00020547,2]
[350080019,1737601858947,-500.0,0.00020547,2]
[350080020,1737601858956,-1708.36,0.00020547,2]
[350080021,1737601858966,-690.87,0.00020547,2]
[350080022,1737601858975,-500.0,0.00020547,2]
[350080023,1737601858984,-770.62,0.00020547,2]
[350080024,1737601858993,-500.0,0.00020547,2]
[350080025,1737601859003,-806.46,0.00020547,2]
[350080026,1737601859012,-233.77030151,0.00020547,2]
[350080027,1737601859021,-500.0,0.00020547,2]
[350080028,1737601859030,-500.47,0.00020547,2]
[350080029,1737601859040,-1051.56,0.00020547,2]
[350080030,1737601859049,-500.0,0.00020547,2]
[350080031,1737601859058,-500.0,0.00020547,2]
[350080032,1737601859068,-1435.24,0.00020547,2]
[350080033,1737601859077,-538.48,0.00020547,2]
[350080034,1737601859087,-500.0,0.00020547,2]
[350080035,1737601859096,-729.76,0.00020547,2]
[350080036,1737601859106,-629.29,0.00020547,2]
[350080037,1737601859115,-500.0,0.00020547,2]
[350080038,1737601859124,-500.0,0.00020547,2]
[350080039,1737601859133,-636.93,0.00020547,2]
[350080040,1737601859143,-216.94472644,0.00020547,2]
[350080041,1737601859152,-1076.24,0.00020547,2]
[350080042,1737601859162,-836.11,0.00020547,2]
[350080043,1737601859172,-1478.72,0.00020547,2]
[350080044,1737601859182,-500.0,0.00020547,2]
[350080045,1737601859192,-500.0,0.00020547,2]
[350080046,1737601859202,-888.27,0.00020547,2]
[350080047,1737601859212,-500.0,0.00020547,2]
[350080048,1737601859221,-590.35,0.00020547,2]
[350080049,1737601859230,-1223.08,0.00020547,2]
[350080050,1737601859240,-500.0,0.00020547,2]
[350080051,1737601859249,-2287.67,0.00020547,2]
[350080052,1737601859258,-500.0,0.00020547,2]
[350080053,1737601859267,-982.27,0.00020547,2]
[350080054,1737601859276,-968.27,0.00020547,2]
[350080055,1737601859286,-500.0,0.00020547,2]
[350080056,1737601859296,-500.0,0.00020547,2]
[350080057,1737601859306,-500.0,0.00020547,2]
[350080058,1737601859315,-1330.84,0.00020547,2]
[350080059,1737601859326,-500.0,0.00020547,2]
[350080060,1737601859336,-1440.82,0.00020547,2]
[350080061,1737601859346,-500.0,0.00020547,2]
[350080062,1737601859355,-1365.42,0.00020547,2]
[350080063,1737601859365,-2497.89,0.00020547,2]
[350080064,1737601859375,-881.86,0.00020547,2]
[350080065,1737601859385,-500.0,0.00020547,2]
[350080066,1737601859395,-1000.0,0.00020547,2]
[350080067,1737601859404,-857.72,0.00020547,2]
[350080068,1737601859414,-1452.48,0.00020547,2]
[350080069,1737601859424,-500.0,0.00020547,2]
[350080070,1737601859433,-1659.58,0.00020547,2]
[350080071,1737601859443,-901.96,0.00020547,2]
[350080072,1737601859453,-500.0,0.00020547,2]
[350080073,1737601859463,-500.0,0.00020547,2]
[350080074,1737601859472,-774.03,0.00020547,2]
[350080075,1737601859481,-620.7,0.00020547,2]
[350080076,1737601859491,-1136.0,0.00020547,2]
[350080077,1737601859500,-1336.5,0.00020547,2]
[350080078,1737601859509,-800.69,0.00020547,2]
[350080079,1737601859519,-762.67,0.00020547,2]
[350080080,1737601859528,-2708.15,0.00020547,2]
[350080081,1737601859538,-1482.92,0.00020547,2]
[350080082,1737601859547,-600.78,0.00020547,2]
[350080083,1737601859557,-500.0,0.00020547,2]
[350080084,1737601859567,-500.0,0.00020547,2]
[350080085,1737601859582,-500.0,0.00020547,2]
[350080086,1737601859591,-500.0,0.00020547,2]
[350080087,1737601859601,-500.0,0.00020547,2]
[350080088,1737601859611,-500.0,0.00020547,2]
[350080089,1737601859621,-645.45,0.00020547,2]
[350080090,1737601859630,-1422.27,0.00020547,2]
[350080091,1737601859640,-280.93864245,0.00020547,2]
[350080092,1737601859650,-500.0,0.00020547,2]
[350080093,1737601859659,-500.0,0.00020547,2]
[350080094,1737601859668,-975.87,0.00020547,2]
[350080095,1737601859677,-500.0,0.00020547,2]
[350080096,1737601859687,-500.0,0.00020547,2]
[350080097,1737601859698,-1785.01,0.00020547,2]
[350080098,1737601859708,-500.0,0.00020547,2]
[350080099,1737601859719,-500.0,0.00020547,2]
[350080100,1737601859728,-500.0,0.00020547,2]
[350080101,1737601859738,-2094.7,0.00020547,2]
[350080102,1737601859747,-973.45,0.00020547,2]
[350080103,1737601859757,-500.0,0.00020547,2]
[350080104,1737601859768,-1583.2,0.00020547,2]
[350080105,1737601859778,-1014.5,0.00020547,2]
[350080106,1737601859789,-500.0,0.00020547,2]
[350080107,1737601859799,-740.05,0.00020547,2]
[350080108,1737601859808,-500.0,0.00020547,2]
[350080109,1737601859825,-500.0,0.00020547,2]
[350080110,1737601859836,-500.0,0.00020547,2]
[350080111,1737601859847,-1008.54,0.00020547,2]
[350080112,1737601859856,-500.0,0.00020547,2]
[350080113,1737601859866,-500.0,0.00020547,2]
[350080114,1737601859876,-500.0,0.00020547,2]
[350080115,1737601859886,-683.54,0.00020547,2]
[350080116,1737601859896,-1456.71,0.00020547,2]
[350080117,1737601859906,-500.0,0.00020547,2]
[350080118,1737601859916,-500.0,0.00020547,2]
[350080119,1737601859926,-1653.44,0.00020547,2]
[350080120,1737601859936,-947.44,0.00020547,2]
[350080121,1737601859947,-659.61,0.00020547,2]
[350080122,1737601859957,-500.0,0.00020547,2]
[350080123,1737601859967,-226.0398368,0.00020547,2]
[350080124,1737601859976,-859.87,0.00020547,2]
[350080125,1737601859986,-500.0,0.00020547,2]
[350080126,1737601859995,-500.0,0.00020547,2]
[350080127,1737601860005,-500.0,0.00020547,2]
[350080128,1737601860015,-713.74,0.00020547,2]
[350080129,1737601860025,-500.0,0.00020547,2]
[350080130,1737601860035,-880.08,0.00020547,2]
[350080131,1737601860045,-500.0,0.00020547,2]
[350080132,1737601860056,-865.21,0.00020547,2]
[350080133,1737601860065,-500.0,0.00020547,2]
[350080134,1737601860075,-500.0,0.00020547,2]
[350080135,1737601860085,-2205.73,0.00020547,2]
[350080136,1737601860094,-525.51,0.00020547,2]
[350080137,1737601860105,-500.0,0.00020547,2]
[350080138,1737601860116,-500.0,0.00020547,2]
[350080139,1737601860126,-500.0,0.00020547,2]
[350080140,1737601860136,-500.0,0.00020547,2]
[350080141,1737601860146,-520.85,0.00020547,2]
[350080142,1737601860156,-500.0,0.00020547,2]
[350080143,1737601860167,-500.0,0.00020547,2]
[350080144,1737601860177,-1015.49,0.00020547,2]
[350080145,1737601860186,-1435.42,0.00020547,2]
[350080146,1737601860197,-500.0,0.00020547,2]
[350080147,1737601860208,-500.0,0.00020547,2]
[350080148,1737601860218,-500.0,0.00020547,2]
[350080149,1737601860227,-500.0,0.00020547,2]
[350080150,1737601860237,-500.0,0.00020547,2]
[350080151,1737601860247,-599.42,0.00020547,2]
[350080152,1737601860257,-671.32,0.00020547,2]
[350080153,1737601860266,-843.22,0.00020547,2]
[350080154,1737601860275,-2063.25,0.00020547,2]
[350080155,1737601860284,-295.36994334,0.00020553,4]
[350080156,1737601860293,-151.67191347,0.00020553,4]
[350080157,1737601860304,-358.61744785,0.00020555,2]
[350080158,1737601860314,-150.0,0.0002056,4]
[350080159,1737601860326,-295.36994334,0.00020575,4]
[350080160,1737601860335,-151.67191347,0.00020575,4]
[350080161,1737601860344,-2350.0,0.00020589,2]
[350080162,1737601860353,-295.36994334,0.00020598,4]
[350080163,1737601860363,-151.67191347,0.00020598,4]
[350080164,1737601860372,-150.0,0.00020602,4]
[350080165,1737601860382,-295.36994334,0.0002062,4]
[350080166,1737601860391,-151.67191347,0.0002062,4]
[350080167,1737601860401,-854.17,0.00020643,2]
[350080168,1737601860411,-295.36994334,0.00020643,4]
[350080169,1737601860422,-150.0,0.00020643,4]
[350080170,1737601860431,-151.67191347,0.00020643,4]
[350080171,1737601860441,-150.0,0.00020643,4]
[350080172,1737601860455,-358.61744785,0.00020659,2]
[350080173,1737601860467,-295.36994334,0.00020666,4]
[350080174,1737601860476,-151.67191347,0.00020666,4]
[350080175,1737601860487,-150.0,0.00020684,4]
[350080176,1737601860497,-295.36994334,0.00020688,4]
[350080177,1737601860507,-151.67191347,0.00020688,4]
[350080178,1737601860516,-295.36994334,0.00020711,4]
[350080179,1737601860525,-151.67191347,0.00020711,4]
[350080180,1737601860535,-150.0,0.00020726,4]
[350080181,1737601860546,-295.36994334,0.00020733,4]
[350080182,1737601860555,-151.67191347,0.00020733,4]
[350080183,1737601860565,-295.36994334,0.00020756,4]
[350080184,1737601860576,-151.67191347,0.00020756,4]
[350080185,1737601860586,-224.91,0.00020756,30]
[350080186,1737601860595,-358.61744785,0.00020762,2]
[350080187,1737601860604,-150.0,0.00020767,4]
[350080188,1737601860615,-150.0,0.00020767,4]
[350080189,1737601860623,-295.36994334,0.00020779,4]
[350080190,1737601860633,-151.67191347,0.00020779,4]
[350080191,1737601860643,-854.17,0.0002078,2]
[350080192,1737601860656,-1372.10417152,0.00020793,2]
[350080193,1737601860669,-17594.12093061,0.00020795,2]
[350080194,1737601860687,-4459.28955589,0.00020796,2]
[350080195,1737601860706,-295.36994334,0.00020801,4]
[350080196,1737601860717,-151.67191347,0.00020801,4]
[350080197,1737601860727,-150.0,0.00020809,4]
[350080198,1737601860737,-1372.10417152,0.00020812,2]
[350080199,1737601860749,-2052.61111539,0.00020815,2]
[350080200,1737601860759,-17594.12093061,0.00020816,2]
[350080201,1737601860768,-52784.34096911,0.0002082,2]
[350080202,1737601860779,-959.38923895,0.00020821,2]
[350080203,1737601860790,-256.90713632,0.00020821,2]
[350080204,1737601860802,-500.0,0.00020821,2]
[350080205,1737601860812,-500.0,0.00020821,2]
[350080206,1737601860822,-500.0,0.00020821,2]
[350080207,1737601860833,-500.0,0.00020821,2]
[350080208,1737601860846,-439.84634573,0.00020821,2]
[350080209,1737601860857,-570.23,0.00020821,2]
[350080210,1737601860867,-500.0,0.00020821,2]
[350080211,1737601860877,-500.0,0.00020821,2]
[350080212,1737601860888,-500.0,0.00020821,2]
[350080213,1737601860933,-386.51871028,0.00020821,2]
[350080214,1737601860943,-500.0,0.00020821,2]
[350080215,1737601860951,-568.18,0.00020821,2]
[350080216,1737601860961,-500.0,0.00020821,2]
[350080217,1737601860970,-780.76,0.00020821,2]
[350080218,1737601860979,-500.0,0.00020821,2]
[350080219,1737601860989,-500.0,0.00020821,2]
[350080220,1737601861000,-500.0,0.00020821,2]
[350080221,1737601861011,-500.0,0.00020821,2]
[350080222,1737601861021,-536.36,0.00020821,2]
[350080223,1737601861031,-500.0,0.00020821,2]
[350080224,1737601861044,-500.0,0.00020821,2]
[350080225,1737601861054,-500.0,0.00020821,2]
[350080226,1737601861065,-500.0,0.00020821,2]
[350080227,1737601861075,-500.0,0.00020821,2]
[350080228,1737601861086,-519.52659,0.00020821,2]
[350080229,1737601861096,-500.0,0.00020821,2]
[350080230,1737601861106,-159.529243,0.00020821,2]
[350080231,1737601861116,-520.63,0.00020821,2]
[350080232,1737601861125,-500.0,0.00020821,2]
[350080233,1737601861134,-467.734024,0.00020821,2]
[350080234,1737601861143,-633.07,0.00020821,2]
[350080235,1737601861154,-548.18,0.00020821,2]
[350080236,1737601861163,-534.32,0.00020821,2]
[350080237,1737601861173,-502.31,0.00020821,2]
[350080238,1737601861182,-500.0,0.00020821,2]
[350080239,1737601861191,-519.59,0.00020821,2]
[350080240,1737601861200,-500.0,0.00020821,2]
[350080241,1737601861210,-500.0,0.00020821,2]
[350080242,1737601861219,-500.0,0.00020821,2]
[350080243,1737601861228,-500.0,0.00020821,2]
[350080244,1737601861237,-500.0,0.00020821,2]
[350080245,1737601861247,-500.0,0.00020821,2]
[350080246,1737601861258,-500.0,0.00020821,2]
[350080247,1737601861269,-500.0,0.00020821,2]
[350080248,1737601861278,-500.0,0.00020821,2]